Cogmind - Beta 16 @@@ ROGUE MODE // 2025.11.27 @ 09:52:05 Player: Mozco Result: Destroyed by G-34 Mercenary with Small Laser Performance ------------- Evolutions (0) 0 Regions Visited (1) 200 Robots Destroyed (14) 70 Value Destroyed (377) 377 Prototype IDs (0) 0 Alien Tech Used (0) 0 Bonus (0) 0 TOTAL SCORE: 647 Bonus ------- None Cogmind --------- Core Integrity 0/250 Matter 162/300 Energy 125/125 System Corruption 0% Temperature Cool (6) Movement Treading (160) Location -10/Materials Parts ------- > --- POWER (1) -------- Light Ion Engine > --- PROPULSION (2) --- Light Treads > --- UTILITY (2) ------ Heat Sink Medium Storage Unit > --- WEAPON (2) ------- Assault Rifle Assault Rifle > --- INVENTORY (10) --- Light Treads Small Storage Unit Structural Scanner Light Armor Plating Field Recycling Unit (0) Assault Rifle Assault Rifle Assault Rifle Assault Rifle Peak State ------------ > --- POWER ------------ Light Ion Engine > --- PROPULSION ------- Light Treads Light Treads > --- UTILITY ---------- Heat Sink Medium Storage Unit > --- WEAPON ----------- Assault Rifle Assault Rifle > --- INVENTORY -------- Light Treads Small Storage Unit Light Armor Plating Field Recycling Unit Medium Laser Assault Rifle Assault Rifle Assault Rifle Assault Rifle Assault Rifle [Rating: 8] Favorites ----------- Power Light Ion Engine Engine Light Ion Engine Propulsion Light Treads Treads Light Treads Utility Heat Sink Device Heat Sink Storage Small Storage Unit Weapon Assault Rifle Energy Gun Small Laser Ballistic Gun Assault Rifle Build | -11 -10 ------- Run | Yrd Mat Slots Evolved . | . . Power . | . . Propulsion . | . . Utility . | . . Weapon . | . . Parts Attached 13 | 6 7 Power 2 | 1 1 Engine 2 | 1 1 Core . | . . Reactor . | . . Propulsion 3 | 2 1 Treads 3 | 2 1 Leg . | . . Wheel . | . . Hover . | . . Flight . | . . Utility 3 | 1 2 Device 1 | . 1 Storage 2 | 1 1 Processor . | . . Hackware . | . . Protection . | . . Artifact . | . . Weapon 5 | 2 3 Energy Gun 2 | 2 . Energy Cannon . | . . Ballistic Gun 3 | . 3 Ballistic Cannon . | . . Launcher . | . . Special Weapon . | . . Impact Weapon . | . . Slashing Weapon . | . . Piercing Weapon . | . . Special Melee Weapon . | . . Unidentified Prototypes . | . . Parts Lost 3 | . 3 Power 1 | . 1 Propulsion 1 | . 1 Utility . | . . Weapon 1 | . 1 Highest Loss Streak 2 | . 2 To Critical Strikes . | . . Average Backups 6 | 1 7 Power . | . . Propulsion . | . . Utility 1 | . 1 Weapon 4 | . 4 Tool/Special . | . . Unused Backups 7 | . 7 Power . | . . Propulsion . | . . Utility 3 | . 3 Weapon 4 | . 4 Tool/Special . | . . Average Slot Usage (%) 92 | . 92 Engine 13 | . 13 Treads 27 | . 27 Device 8 | . 8 Storage 14 | . 14 Energy Gun 3 | . 3 Ballistic Gun 23 | . 23 Peak Build Rating 8 | 6 8 Average Rating 6 | 4 6 On Entrance 3 | . 6 Avg Prop Armor Cover (%) . | . . Naked Turns . | . . Heaviest Build 18 | 11 18 Greatest Support 40 | 40 40 Greatest Overweight (x) . | . . Average Overweight (x) . | . . Largest Inventory Capacity 10 | 8 10 Average Capacity 8 | 6 8 Most Carried 10 | 2 10 Average Carried 6 | 1 7 Final Capacity 10 | 8 10 Final Carried 9 | 2 9 Class Distribution -------------------- 100% | Mutant Dominant Class ---------------- Mutant | -10/Materials Resources | -11 -10 ----------- Run | Yrd Mat Matter Collected 528 | 183 345 Remotely . | . . Salvage Created 500 | . 500 Parts 25 | . 25 Haulers Intercepted 1 | . 1 Recyclers Shooed 3 | . 3 Parts Field Recycled . | . . Retrieved Matter . | . . Parts Self-Destructed . | . . Prevented . | . . Parts Restored . | . . Kills | -11 -10 ------- Run | Yrd Mat Combat Hostiles Destroyed 12 | . 12 Melee 1 | . 1 Guns 11 | . 11 Classes Destroyed 4 | . 4 Hauler 1 | . 1 Mechanic 1 | . 1 Swarmer 3 | . 3 Grunt 9 | . 9 Best Kill Streak 5 | . 5 Combat Bots Only 5 | . 5 Max Kills in Single Turn 1 | . 1 Gunslinging . | . . Exploded . | . . Melee 1 | . 1 Uniques/NPCs Destroyed . | . . Combat | -11 -10 -------- Run | Yrd Mat Hostile Shots Fired 116 | . 116 Missed 27 | . 27 Hits 89 | . 89 Projectile 89 | . 89 Damage Taken 1008 | . 1008 Core 255 | . 255 Absorbed by Shields . | . . Core Remaining (%) 100 | 100 . Volleys Fired 70 | . 70 Largest 2 | . 2 Hottest 90 | . 90 Shots Fired 140 | . 140 Gun 140 | . 140 Cannon . | . . Launcher . | . . Special . | . . Kinetic 122 | . 122 Thermal 18 | . 18 Explosive . | . . Electromagnetic . | . . Robot Hit Streak 17 | . 17 Robot Miss Streak 7 | . 7 Penetration Max . | . . Secondary Targets 1 | . 1 Max Gunslinging Chain 1 | . 1 Shots Hit Robots 88 | . 88 Core Hits 32 | . 32 Critical Kills . | . . Critical Parts Destroyed 1 | . 1 Critical Strikes 1 | . 1 Destroy 1 | . 1 Melee Attacks . | . . Impact . | . . Slashing . | . . Piercing . | . . Sneak Attacks . | . . Combat Hostiles . | . . Follow-up Attacks . | . . Damage Inflicted 1212 | . 1212 Guns 1203 | . 1203 Cannons . | . . Explosions . | . . Melee . | . . Ramming 9 | . 9 Kinetic 1098 | . 1098 Thermal 105 | . 105 Explosive . | . . Electromagnetic . | . . Impact . | . . Slashing . | . . Piercing . | . . Highest Corruption . | . . Average Corruption . | . . Corruption Purged . | . . Corruption Blocked . | . . Overload Shots . | . . Overflow Damage . | . . Projectiles . | . . Explosions . | . . Melee . | . . Knockbacks . | . . Impact . | . . Kinetic . | . . Secondary . | . . Self-Inflicted Damage . | . . Shots . | . . Rammed 6 | 1 5 Targets Rammed 6 | 1 5 Kicked . | . . Crushed . | . . Highest Temperature 210 | . 210 Average Temperature 125 | . 125 Received Heat Transfer 456 | . 456 Siege Activations . | . . Martial Activations . | . . Shielding Activations . | . . Robots Disrupted . | . . Combat Hostiles . | . . Robots Corrupted . | . . Combat Hostiles . | . . Parts Fried . | . . Impact Corruptions . | . . Robots Melted . | . . Combat Hostiles . | . . Parts Melted . | . . Heat Transferred 261 | . 261 Parts Sabotaged . | . . Parts Stolen . | . . Parts Stripped . | . . Power Chain Reactions . | . . Alert | -11 -10 ------- Run | Yrd Mat Maximum Alert Level . | . . Low Security (%) 100 | 100 100 Level 1 . | . . Level 2 . | . . Level 3 . | . . Level 4 . | . . Level 5 . | . . High Security . | . . Max Security . | . . Peak Influence 108 | . 108 Initial . | . . Average 41 | . 46 Influence Increases 360 | . 360 Destroy 0b10 Robot/C 240 | . 240 Destroy 0b10 Robot/NC 10 | . 10 Destroy Leader 42 | . 42 Successful Hack 21 | . 21 Destroy Structure 2 | . 2 Lose Combat Pursuer 45 | . 45 Influence Decreases 252 | . 252 Time Decay 222 | . 222 Lost Part 30 | . 30 Squads Dispatched 2 | . 2 Investigation 2 | . 2 Extermination . | . . Reinforcement . | . . Assault . | . . Garrison . | . . Intercept . | . . Searches Triggered . | . . Construction Impeded . | . . Haulers Reinforced . | . . Active Scanning Responses . | . . Cargo Convoy Interrupts . | . . Stealth | -11 -10 --------- Run | Yrd Mat Distress Signals 2 | . 2 Communications Jammed . | . . Distress Signals . | . . Times Spotted 25 | . 25 Peak Tracking Total 8 | . 8 Tactical Retreats 2 | . 2 Traps | -11 -10 ------- Run | Yrd Mat Traps Triggered . | . . Indirectly . | . . Trap Hack Attempts . | . . Triggered . | . . Disarmed . | . . Reprogrammed . | . . Reused . | . . Traps Extracted . | . . Installed . | . . Triggered . | . . Machines | -11 -10 ---------- Run | Yrd Mat Machines Disabled . | . . Max in Single Turn . | . . Machines Repaired . | . . Machines Dismantled . | . . Machines Sabotaged . | . . Overloaded Fab Kills . | . . Hacking | -11 -10 --------- Run | Yrd Mat Machines Accessed 3 | . 3 Terminals 3 | . 3 Fabricators . | . . Repair Stations . | . . Recycling Units . | . . Scanalyzers . | . . Garrison Access . | . . Total Hacks 14 | . 14 Successful 4 | . 4 Failed 10 | . 10 Catastrophic . | . . Database Lockouts . | . . Manual 14 | . 14 Terminals 14 | . 14 Fabricators . | . . Repair Stations . | . . Recycling Units . | . . Scanalyzers . | . . Garrison Access . | . . Terminal Hacks 3 | . 3 Robot Analysis 3 | . 3 Fabricator Hacks . | . . Repair Station Hacks . | . . Recycling Unit Hacks . | . . Scanalyzer . | . . Garrison Access Hacks . | . . Unauthorized Hacks 1 | . 1 Terminals 1 | . 1 Botnet 1 | . 1 Fabricators . | . . Repair Stations . | . . Recycling Units . | . . Scanalyzers . | . . Garrison Access . | . . Data Cores Recovered . | . . Used . | . . Hacking Detections 3 | . 3 Full Trace Events 3 | . 3 Feedback Events . | . . Feedback Blocked . | . . Robot Schematics Acquired . | . . Robots Built . | . . Authchips . | . . Time . | . . Total Robot Build Rating . | . . Part Schematics Acquired . | . . Parts Built . | . . Authchips . | . . Time . | . . Total Part Build Rating . | . . Part Studies Acquired . | . . Parts Repaired . | . . Time . | . . Parts Recycled . | . . Recycled Matter . | . . Retrieved Matter . | . . Retrieved Components . | . . Parts Scanalyzed . | . . Part Schematics Acquired . | . . Parts Damaged . | . . Bothacking | -11 -10 ------------ Run | Yrd Mat Used RIF Installer . | . . Robots Hacked . | . . Non-combat . | . . Combat . | . . Robot Hacks Applied . | . . Relay Couplers Released . | . . Fabnet Peak Effective % . | . . Robots Rewired . | . . Allies Hacked . | . . Hacks Repelled . | . . Allies | -11 -10 -------- Run | Yrd Mat Total Allies . | . . Largest Group . | . . Highest-Rated Group . | . . Highest-Rated Ally . | . . Total Orders . | . . Ally Attacks . | . . Total Damage . | . . Kills . | . . Allies Corrupted . | . . Allies Melted . | . . Intel | -11 -10 ------- Run | Yrd Mat Active Infowar (turns) . | . . Robot Analysis Total 3 | . 3 Derelict Logs Recovered . | . . Drone Launches . | . . Drone Recoveries . | . . Exploration | -11 -10 ------------- Run | Yrd Mat Turns Passed 621 | 67 554 Spaces Moved 230 | 39 191 Core 6 | 6 . Treads 224 | 33 191 Legs . | . . Wheels . | . . Hover . | . . Flight . | . . Fastest Speed 50 | 50 160 Average Speed 157 | 143 160 Slowest Speed 160 | 160 160 Overloaded Moves . | . . Propulsion Burnouts . | . . Robots Hopped . | . . Potential Cave-ins . | . . Cave-ins Triggered . | . . Exploration Rate (%) 20 | 5 35 Regions Visited 1 Branch Regions . Pre-discovered Areas . | . . Known Exits Taken . | . . Unknown Exits Taken 1 | 1 . Scrap Searched . | . . Spaces Dug . | . . Terrain Destroyed . | . . Melee . | . . Projectile . | . . AOE . | . . Terrain Rammed . | . . Walls Destroyed . | . . Machines Disabled . | . . Actions | -11 -10 --------- Run | Yrd Mat Total 342 | 47 295 Wait 12 | . 12 Move 229 | 38 191 Hop . | . . Pick Up 10 | 2 8 Fast Attach 8 | 6 2 Attach 2 | . 2 Detach . | . . Swap 3 | . 3 Drop 2 | . 2 Fire 70 | . 70 Melee . | . . Ram . | . . Kick . | . . Crush 6 | 1 5 Escape Stasis . | . . Rewire . | . . Trap . | . . Miscellaneous . | . . Route ------- -11/Scrapyard -10/Materials (discovered 1 exit: [*Min]) History --------- Turn | Location | Event 44 | -11/Scrapyard | Discovered new exit (range 14) 68 | -11/Scrapyard | Entered Materials 304 | -10/Materials | Build established: Mutant 416 | -10/Materials | Discovered new exit (range 8) 536 | -10/Materials | Core integrity fell below 50% 597 | -10/Materials | Core integrity fell below 20% 622 | -10/Materials | Destroyed by G-34 Mercenary with Small Laser Last Messages --------------- 00580_ K-01 Serf collects debris. 00581_ G-34 Mercenary destroyed. 00583_ K-01 Serf collects debris. 00583_ U-05 Engineer builds a Door. 00584_ Acquired 43 matter. 00588_ R-06 Scavenger collects Aluminum Leg. 00588_ Assault Rifle destroyed. 00590_ Electrolysis Chamber disabled. 00592_ R-06 Scavenger collects Sml. Laser. 00595_ R-06 Scavenger collects Aluminum Leg. 00597_ G-47 Trooper destroyed. 00598_ Acquired 44 matter. 00598_ K-01 Serf collects debris. 00602_ U-05 Engineer builds a Door. 00604_ Lgt. Treads destroyed. 00605_ K-01 Serf collects debris. 00613_ R-06 Scavenger sends out distress signal. 00614_ K-01 Serf cleans the Electrolysis Chamber. 00618_ Destroyed Lgt. Nuclear Core. 00621_ Slammed into G-47 Trooper. Map ----- +----------------------------------------------------+ | ?????????##"|||"##??????????????????# # | | ?????????#"" ""#??????????????????# # | | ?????????# #??????????????????# # """ | | ?????????# < #??########????????+ + """ | | ?????????# ???# #????????# # """ | | ?????????? ???#""" [ #????????# # """ | | ??????????? ????#""" #????????# # """ " | | ???????????# #????#""" #????????# # " | | ???????????# #????# #????????# ####### | | ???????????# #????# #????????# #?????? | | ???????????# ###########+########## +?????? | | ???????????# #?????? | | ???????????# #?????? | | ???????????# +?????? | | ???????????+ ################ ####?????? | | ???????????# #??????????????# #????????? | | ############ ##???#######???#! ==!!#????????? | | # # ##### #???#!!==!!#????????? | | # # #???########????????? | | # + " #???????????????????? | | # # g #???????????????????? | | # | # ##### a #???????????????????? | | # ## #######gk #############????????? | | # ## # """=#% ???????? | | # ## =# "T"=g%! ^ ???????? | | ####+####### # =#@* k ???????? | | ???# #?????# # !#%* "" """ ""??????????? | | ???# #?????# # # "" """??????????????? | | ???# ####### # """ # """ """ ????????????? | | ???# # """ # ????????? | | ???# + """ #^ ????????? | | ???#### ####### """ """ [!????????? | | ????####+##### #?????# """ """?? [?????????? | | ??#! ## #????? """ """??????????????? | | ??# ! ## #????? ??????????????? | | ??# ## #???? ?????????????? | | ??# """ ## #???? #####?#####????????????? | | ??# """ ## #???? #??????????????????????? | | ??# !!! """ ## #???# ???????????????????????? | | ??# !! #? ????# ???????????????????????? | | ??# !! #? ???? ???????????????????????? | | ??###########? ????# ???????????????????????? | | ?????????????? ????# ???????????????????????? | | ?????????????? ????? ???????????????????????? | | ??????????????+????? ???????????????????????? | | ??????????????????????????????????????????????? | | ??????????????????????????????????????????????? | | ??????????????????????????????????????????????? | | ??????????????????????????????????????????????? | | ??????????????????????????????????????????????? | +----------------------------------------------------+ Best States ------------- Heat Dissipation 35 Energy Generation 10 Energy Capacity 125 Matter Stores 242 Matter Capacity 300 Sight Range 16 Terrain Scan Density 10 Evasion (%) 40 Recoil Reduction 2 Item Schematics ----------------- None Robot Schematics ------------------ None Fabricated ------------ Nothing Repaired ---------- Nothing Studied --------- None Alien Tech Used ----------------- None Achievements -------------- None Challenges ------------ None Game ------ Seed SwarmTeslaCrosscalibrator Manual? 0 Play Time 00:07:43 Cumulative 346.2 hours Start 2025.11.27 @ 09:34:32 End 2025.11.27 @ 09:52:05 Sessions 1 Manual Loads 0 Difficulty Rogue Special Mode None Game No. 360 Rogue 356 Adventurer 3 Explorer 1 Win Type - Total 2 Types 2/0/0/0/0/0/0/0/0/0 Lore% 83 Gallery% 78 Achievement% 65 Wizard Run 0 Options --------- Layout 0 ASCII 0 Keyboard 0 Movement Mouse Keybinds 0 Fullscreen 2 Font 18/SmallcapsGlow Map View 76x50 Zoom Use 0% Tactical HUD 1 Map Filters NONE Filters NONE Steam 1 RUN: 69b9c849-e430-4c51-82a7-50980eb15615